[Event "SixDays Budapest GM-A May 2024"]
[Site "Budapest"]
[Date "2024.05.19"]
[Round "6.5"]
[White "Sathvik Adiga"]
[Black "Wadsworth, Matthew J"]
[Result "0-1"]
[ECO "B15"]
[WhiteElo "2398"]
[BlackElo "2470"]
[Annotator "TA"]
[PlyCount "102"]
[EventDate "2024.05.15"]
[EventType "tourn"]
[EventCountry "HUN"]
[SourceTitle "playchess.com"]
[Source "ChessBase"]
[SourceQuality "1"]
[TimeControl "40/5400+30:1800+30"]

{[%evp 14,102,36,32,39,39,41,29,33,24,33,18,14,21,43,11,36,-23,-22,-50,-53,-71,-55,-75,-59,-62,-56,-109,-93,-424,-432,-405,-412,-422,-429,-583,-575,-626,-591,-716,-712,-737,-737,-745,-723,-731,-732,-825,-829,-781,-781,-831,-802,-816,-784,-899,-879,-882,-878,-1155,-1141,-1173,-1207,-1412,-1371,-29979,-29980,-29976,-29975,-12796,-1733,-29987,-29988,-29988,-29989,-29989,-29990,-29990,-29989,-29989,-29990,-29991,-29992,-29993,-29992,-29992,-29991,-29991,-29990,-29990,-29991]} 1. e4 {[%emt 0:00:03]} c6 {[%emt 0:00:11]} 2. d4 {[%emt 0:00:04]} d5 {[%emt 0:00:23]} 3. Nc3 {[%emt 0:00:04]} dxe4 {[%emt 0:00:07]} 4. Nxe4 {[%emt 0:00:02]} Nf6 {[%emt 0:00:10]} 5. Nxf6+ {[%emt 0:00:01]} exf6 {[%emt 0:00:11]} 6. c3 {[%emt 0:00:02]} Bd6 {[%emt 0:00:20]} 7. Bd3 {[%emt 0:00:01]} O-O {[%emt 0:00:19]} 8. Qc2 {[%emt 0:00:02]} Re8+ {[%emt 0:00:28]} 9. Ne2 {[%emt 0:00:02]} h5 {[%emt 0:00:12][%cal Bh7h5,Bh5h4][%mdl 32]} 10. O-O {[%emt 0:00:27]} h4 {[%emt 0:00:25] White has an edge.} 11. h3 {[%emt 0:00:02]} Nd7 {[%emt 0:00:17]} 12. Bd2 {[%emt 0:00:02]} Nf8 {[%emt 0:00:15]} 13. Rae1 {[%emt 0:00:01]} g6 {[%emt 0:00:11]} 14. c4 {[%emt 0:11:46]} Bb8 {[%emt 0:00:09]} 15. Qc1 {[%emt 0:04:46]} ({White should play} 15. b3 $14) 15... Ne6 $11 {[%emt 0:05:40][%cal Od8d6]} 16. Bc3 {[%emt 0:16:34]} Qd6 {[%emt 0:11:46]} 17. f4 {[%emt 0:00:24]} Ng7 {[%emt 0:05:15]} 18. Qd2 {[%emt 0:19:19]} Bf5 {[%emt 0:03:10] Black is more active.} 19. Nc1 {[%emt 0:02:00] [#] Threatens to win with Rxe8+.} Bc7 $1 {[%emt 0:01:36]} 20. Bxf5 {[%emt 0:21:38]} (20. Qf2 $15) 20... Nxf5 $17 {[%emt 0:00:15]} 21. d5 $2 {[%emt 0:02:03][%mdl 8192] This costs White the game.} (21. Nd3 $17) 21... Bb6+ $19 {[%emt 0:02:43]} 22. Kh2 {[%emt 0:04:04]} Be3 {[%emt 0:02:23]} 23. Rxe3 {[%emt 0:08:32]} Rxe3 {[%emt 0:01:17]} (23... Nxe3 24. Rf3 $19) 24. Rf2 {[%emt 0:06:31]} Rae8 {[%emt 0:01:40]} 25. Ne2 {[%emt 0:00:15]} c5 {[%emt 0:03:08]} 26. Qd1 {[%emt 0:02:18]} Ng3 {[%emt 0:02:03]} 27. Ng1 {[%emt 0:00:57]} Ne4 {[%emt 0:00:37]} 28. Rf3 {[%emt 0:00:10]} Nxc3 {[%emt 0:00:19]} 29. bxc3 {[%emt 0:00:04]} R8e4 {[%emt 0:01:45]} 30. Rxe3 {[%emt 0:01:18]} Qxf4+ {[%emt 0:00:45]} 31. Kh1 {[%emt 0:00:26]} Rxe3 {[%emt 0:02:05][%mdl 4096] Endgame. KQR-KQN} 32. d6 {[%emt 0:00:24]} Re8 $1 {[%emt 0:00:00]} (32... Rxc3 $2 33. d7 Kg7 34. d8=Q $18 (34. d8=B $2 Rc1 $19)) 33. d7 Rd8 {[%emt 0:00:00][%cal Of4c7]} 34. Qe1 {[%emt 0:00:33]} Kf8 {[%emt 0:00:00]} ({And not} 34... Rxd7 35. Qe8+ Kg7 36. Qxd7 Qxc4 37. Qd2 $11 (37. Qxb7 Qxa2 38. Qc7 Qa3 $17)) (34... Qxc4 35. Qe7 $11) 35. Qd1 {[%emt 0:00:12]} Qc7 {[%emt 0:00:52]} (35... Qxc4 36. Qd6+ Kg7 37. Qc7 $19 (37. Qe7 $2 Rh8 $19)) 36. Qg4 {[%emt 0:00:53]} g5 {[%emt 0:00:40]} 37. Qf5 {[%emt 0:00:07]} Kg7 {[%emt 0:00:16]} 38. a3 {[%emt 0:00:18]} Rxd7 {[%emt 0:00:15]} 39. Nf3 {[%emt 0:00:07] Prevents Rd2} Rd1+ {[%emt 0:00:32]} 40. Ng1 {[%emt 0:00:03]} Qe5 {[%emt 0:00:22]} 41. Qf2 {[%emt 0:30:20]} Qe1 {[%emt 0:30:13]} 42. Qxc5 {[%emt 0:00:06]} b6 {[%emt 0:00:06] Black mates.} 43. Qd4 {[%emt 0:00:11]} Rxd4 {[%emt 0:00:33]} 44. cxd4 {[%emt 0:00:02]} Kg6 {[%emt 0:00:47]} 45. Kh2 {[%emt 0:00:06]} Qg3+ {[%emt 0:00:14]} 46. Kh1 {[%emt 0:00:04]} Qxa3 {[%emt 0:00:08]} 47. d5 {[%emt 0:00:05]} Kf5 {[%emt 0:00:19]} 48. Nf3 {[%emt 0:00:13]} Qc1+ {[%emt 0:00:54]} 49. Kh2 {[%emt 0:00:01]} Qxc4 {[%emt 0:00:34]} 50. d6 {[%emt 0:00:11]} Qf4+ {[%emt 0:00:13]} 51. Kg1 {[%emt 0:00:04]} Qxd6 {[%emt 0:00:14] Weighted Error Value: White=0.64/Black=0.04 (flawless) .  Loses game:     	White=1     	---        Mistake:       	White=2     	---        Inaccurate:     	White=3     	---        OK:         	White=4     	Black=12     Best:        	White=1     	---        Strong:       	---       	Black=1} 0-1

[Event "SixDays Budapest GM-A May 2024"]
[Site "Budapest"]
[Date "2024.05.20"]
[Round "7.1"]
[White "Wadsworth, Matthew J"]
[Black "Ramoutar, Alan-Safar"]
[Result "1/2-1/2"]
[ECO "D30"]
[WhiteElo "2470"]
[BlackElo "2360"]
[Annotator "TA"]
[PlyCount "92"]
[EventDate "2024.05.15"]
[EventType "tourn"]
[EventCountry "HUN"]
[SourceTitle "playchess.com"]
[Source "ChessBase"]
[SourceQuality "1"]
[TimeControl "40/5400+30:1800+30"]

{[%evp 12,92,16,16,33,30,37,34,41,43,35,36,37,43,49,32,45,49,62,32,33,32,36,0,0,0,0,0,0,0,0,0,0,0,0,0,0,-2,0,0,-8,-8,-8,-14,-5,-21,-16,-18,-12,-18,-24,-29,0,-18,-18,-24,-24,-31,-28,-61,-12,-11,-11,-12,-4,-14,-13,-14,-14,-14,-14,-14,0,-33,-10,-10,-10,-10,-10,-10,-10,-10,-10]} 1. d4 {[%emt 0:03:51]} d5 {[%emt 0:00:31]} 2. c4 {[%emt 0:00:07]} e6 {[%emt 0:00:14]} 3. Nf3 {[%emt 0:00:11]} Nf6 {[%emt 0:00:19]} 4. g3 {[%emt 0:00:13]} Bb4+ {[%emt 0:00:22]} 5. Bd2 {[%emt 0:00:23]} a5 {[%emt 0:00:17]} 6. Bg2 {[%emt 0:00:30]} O-O {[%emt 0:00:21]} 7. Qc2 {[%emt 0:00:30]} c5 {[%emt 0:00:21]} 8. cxd5 {[%emt 0:01:07]} cxd4 {[%emt 0:00:20]} 9. Nxd4 {[%emt 0:00:16]} Qb6 {[%emt 0:00:27] White is slightly better.} 10. e3 {[%emt 0:00:36]} exd5 {[%emt 0:00:14]} 11. O-O {[%emt 0:01:14]} Nc6 {[%emt 0:00:19]} 12. Nxc6 {[%emt 0:00:44]} bxc6 {[%emt 0:00:10]} 13. Rc1 {[%emt 0:00:55]} Rb8 {[%emt 0:00:41]} 14. Nc3 {[%emt 0:04:47]} (14. Qxc6 Qxc6 15. Rxc6 Bxd2 16. Nxd2 Rxb2 $17) 14... h5 {[%emt 0:00:49][%cal Oh5h4]} 15. a3 {[%emt 0:06:48]} Be7 {[%emt 0:00:11]} 16. Na4 {[%emt 0:00:26][%csl LRb6,LRc6]} Qc7 {[%emt 0:00:18][%cal Oh5h4]} 17. Qxc6 {[%emt 0:01:30]} Qxc6 {[%emt 0:00:10]} 18. Rxc6 {[%emt 0:00:05][%cal Oc6c7]} Bd7 {[%emt 0:00:13]} 19. Rc7 {[%emt 0:00:08]} Bd8 $1 {[%emt 0:00:29]} ({Don't play} 19... Bxa4 $6 20. Rxe7 Rxb2 21. Bc3 $16 (21. Bxa5 Rc8 $16)) 20. Rxd7 {[%emt 0:00:31]} Nxd7 {[%emt 0:00:11]} 21. Rd1 {[%emt 0:04:16]} Nb6 {[%emt 0:03:05]} 22. Nxb6 {[%emt 0:03:10]} Rxb6 {[%emt 0:00:15]} 23. Bxa5 {[%emt 0:13:46]} Rxb2 {[%emt 0:00:20]} 24. Bc3 {[%emt 0:01:03]} (24. Rxd5 Rb1+ 25. Bf1 Bxa5 26. Rxa5 Rc8 $17) 24... Rc2 {[%emt 0:05:32]} 25. Bb4 {[%emt 0:05:45] This pair of bishops is nice.} Re8 {[%emt 0:00:15]} 26. Bxd5 {[%emt 0:03:26] Threatens to win with Bb3.} Be7 {[%emt 0:02:12]} 27. Rd4 {[%emt 0:03:28]} Bxb4 {[%emt 0:14:30]} 28. axb4 $11 {[%emt 0:00:09][%mdl 4096] Endgame. KRR-KRB} Rb8 {[%emt 0:02:15]} 29. Rf4 {[%emt 0:02:04]} Rc7 {[%emt 0:00:15][%mdl 1024] Black has compensation.} 30. Kg2 {[%emt 0:03:18]} g6 {[%emt 0:00:35]} 31. Bc4 {[%emt 0:03:00]} Rbc8 {[%emt 0:03:19]} 32. Bf1 {[%emt 0:02:29]} Rc2 {[%emt 0:01:34]} 33. b5 {[%emt 0:01:58]} Rb2 {[%emt 0:01:56] Dodges Rb4} 34. h3 {[%emt 0:05:58]} Kg7 {[%emt 0:00:24]} 35. g4 {[%emt 0:03:03]} hxg4 {[%emt 0:01:46]} (35... h4 $15 {is more appropriate.}) 36. hxg4 {[%emt 0:00:50]} Rc7 {[%emt 0:07:41]} 37. Bd3 {[%emt 0:02:47]} Rb3 {[%emt 0:01:33]} 38. Rd4 {[%emt 0:03:06]} Rcc3 {[%emt 0:00:27]} 39. Bf1 {[%emt 0:00:50]} Rb2 {[%emt 0:00:29]} 40. Kg3 {[%emt 0:04:54]} Rc1 {[%emt 0:00:37]} 41. Kg2 {[%emt 0:31:15]} Rc3 {[%emt 0:31:40]} 42. Re4 {[%emt 0:00:32]} f5 {[%emt 0:04:05]} 43. gxf5 {[%emt 0:01:59] The position is equal.} gxf5 {[%emt 0:00:12]} 44. Rf4 {[%emt 0:00:34]} Rxe3 {[%emt 0:00:51] ...Kf6 is the strong threat.} 45. Rxf5 {[%emt 0:00:11]} Rc3 {[%emt 0:00:47]} 46. Rf3 {[%emt 0:02:26]} Rc1 {[%emt 0:00:52] Weighted Error Value: White=0.06 (flawless) /Black=0.06 (flawless) .  Mistake:       	---       	Black=1      Inaccurate:     	White=4     	Black=1      OK:         	White=20    	Black=20     Best:        	---       	Black=2      Strong:       	---       	Black=1} 1/2-1/2

[Event "SixDays Budapest GM-A May 2024"]
[Site "Budapest"]
[Date "2024.05.20"]
[Round "7.2"]
[White "Aczel, Gergely"]
[Black "Sathvik Adiga"]
[Result "0-1"]
[ECO "D26"]
[WhiteElo "2493"]
[BlackElo "2398"]
[Annotator "TA"]
[PlyCount "128"]
[EventDate "2024.05.15"]
[EventType "tourn"]
[EventCountry "HUN"]
[SourceTitle "playchess.com"]
[Source "ChessBase"]
[SourceQuality "1"]
[TimeControl "40/5400+30:1800+30"]

{[%evp 59,128,-75,-67,-70,-69,-66,-67,-78,-74,-60,-56,-53,-54,-51,-49,-56,-57,-72,-52,-124,-47,-105,-110,-112,-63,-84,-66,-79,-52,-117,-89,-115,-62,-113,-95,-118,-123,-125,-90,-191,-207,-209,-217,-244,-220,-334,-291,-577,-515,-591,-575,-565,-506,-656,-650,-1017,-991,-1027,-1014,-6187,-5917,-2870,-2152,-29971,-3350,-2126,-12849,-29973,-29974,-5193,-11281]} 1. d4 {[%emt 0:00:37]} d5 {[%emt 0:00:21]} 2. c4 {[%emt 0:00:05]} dxc4 {[%emt 0:00:05]} 3. e3 {[%emt 0:00:05]} Nf6 {[%emt 0:00:08]} 4. Bxc4 {[%emt 0:00:09]} e6 {[%emt 0:00:05]} 5. Nf3 {[%emt 0:00:04]} c5 {[%emt 0:00:07]} 6. O-O {[%emt 0:00:05]} Nc6 {[%emt 0:00:04]} 7. Nc3 {[%emt 0:02:00]} a6 {[%emt 0:00:05]} 8. dxc5 {[%emt 0:04:39]} Qxd1 {[%emt 0:00:18]} 9. Rxd1 {[%emt 0:00:06]} Bxc5 {[%emt 0:00:05]} 10. Be2 {[%emt 0:00:52]} O-O {[%emt 0:04:28]} 11. Nd4 {[%emt 0:24:04]} Bxd4 {[%emt 0:19:50]} 12. exd4 {[%emt 0:00:08]} Rd8 {[%emt 0:00:09]} 13. Be3 {[%emt 0:04:19]} b5 {[%emt 0:14:11]} 14. d5 {[%emt 0:40:51]} exd5 {[%emt 0:04:55]} 15. Bg5 {[%emt 0:05:00]} Be6 {[%emt 0:03:45]} 16. Bxf6 {[%emt 0:00:06]} gxf6 {[%emt 0:00:07]} 17. Bf3 {[%emt 0:00:03]} Ne7 {[%emt 0:00:41]} 18. Rd4 {[%emt 0:00:09]} Rac8 {[%emt 0:06:58]} 19. Rad1 {[%emt 0:02:43]} Rc4 {[%emt 0:00:49]} 20. R4d2 {[%emt 0:04:57]} b4 {[%emt 0:03:03]} 21. Ne4 {[%emt 0:02:58]} f5 {[%emt 0:07:09]} 22. Nf6+ {[%emt 0:00:06]} Kg7 {[%emt 0:00:02]} 23. b3 {[%emt 0:00:15]} Rc6 {[%emt 0:01:59]} 24. Nh5+ {[%emt 0:00:03]} Kf8 {[%emt 0:00:10]} 25. h3 {[%emt 0:01:03]} a5 {[%emt 0:01:03]} 26. Nf6 {[%emt 0:04:43]} Kg7 {[%emt 0:01:53]} 27. Nh5+ {[%emt 0:00:02]} Kf8 {[%emt 0:00:22]} 28. Nf4 {[%emt 0:00:23]} Ng6 {[%emt 0:00:57]} 29. Nh5 {[%emt 0:02:44]} Ke7 {[%emt 0:01:18]} 30. Kh2 {[%emt 0:00:36]} (30. Bxd5 $2 Rcd6 31. Rc2 Rxd5 $19) 30... Ne5 {[%emt 0:03:02]} 31. Be2 $1 {[%emt 0:00:23]} (31. Bxd5 $2 {perishes.} Rcd6 32. f4 Ng6 $19 (32... Rxd5 $2 33. Rxd5 Rxd5 34. Rxd5 $19) (32... Nc6 $2 33. Re1 $19)) 31... Rdc8 {[%emt 0:00:16]} 32. Nf4 {[%emt 0:01:30]} Rc2 {[%emt 0:00:18]} 33. Ba6 {[%emt 0:00:36]} Rxd2 {[%emt 0:00:08]} 34. Rxd2 {[%emt 0:00:01]} Rc5 {[%emt 0:00:17]} 35. Kg3 {[%emt 0:00:29]} Rc3+ {[%emt 0:01:08]} 36. f3 {[%emt 0:00:26]} Kd6 {[%emt 0:00:08]} 37. Bb7 {[%emt 0:00:28]} Rc5 {[%emt 0:00:06]} 38. Ba6 $1 {[%emt 0:01:06]} Ng6 {[%emt 0:00:23]} 39. Nh5 {[%emt 0:00:12]} (39. Bd3 $15) 39... Ke7 {[%emt 0:00:13]} (39... Ke5 $17 {Hoping for ...f4+.} 40. f4+ Kd6) 40. Bb7 {[%emt 0:00:27]} (40. Nf4 $15) 40... Rc7 {[%emt 0:01:57]} 41. Ba6 {[%emt 0:30:03]} (41. Bxd5 $2 Rd7 42. Bxe6 Rxd2 $19) 41... Rc6 {[%emt 0:30:24]} ({Better is} 41... Kd6 $17 42. Nf4 Rc3) 42. Bb5 {[%emt 0:00:35]} Rc5 {[%emt 0:00:41]} 43. Ba6 {[%emt 0:00:12]} h6 {[%emt 0:00:08]} 44. Bb7 {[%emt 0:01:15]} ({White should play} 44. Nf4 $15) 44... Rc7 {[%emt 0:00:07]} 45. Ba6 {[%emt 0:00:01]} (45. Bxd5 $2 Rd7 46. f4 Rxd5 $19) 45... Rc6 {[%emt 0:00:01]} (45... Rc3 $17 46. Bd3 Ne5) 46. Bb5 {[%emt 0:00:12]} (46. Bd3 $15) 46... Rc5 {[%emt 0:00:04]} 47. Ba6 {[%emt 0:00:04]} Kd6 {[%emt 0:01:07]} 48. Nf4 {[%emt 0:00:55]} Rc1 {[%emt 0:04:49]} 49. Bb7 {[%emt 0:01:33]} (49. Nd3 $17 Rc3 50. Nf4) 49... Nxf4 $19 {[%emt 0:01:45]} 50. Kxf4 {[%emt 0:00:01]} Kc5 {[%emt 0:02:32]} 51. Ba6 {[%emt 0:00:06]} Rc3 {[%emt 0:02:43]} 52. Bd3 {[%emt 0:00:34]} (52. g4 $142 fxg4 53. hxg4) 52... d4 $19 {[%emt 0:00:27]} 53. Ke5 $2 {[%emt 0:01:18]} (53. h4 {was called for.}) 53... a4 $19 {[%emt 0:01:20]} 54. bxa4 {[%emt 0:00:01] [#]} Bxa2 $1 {[%emt 0:00:30]} 55. Bxf5 {[%emt 0:00:23]} Re3+ {[%emt 0:00:19]} 56. Be4 {[%emt 0:00:35]} Bc4 {[%emt 0:00:24]} 57. g4 {[%emt 0:00:21]} b3 {[%emt 0:00:20]} 58. h4 {[%emt 0:00:12]} d3 {[%emt 0:00:15]} 59. Rd1 {[%emt 0:01:25]} b2 {[%emt 0:00:21]} 60. g5 {[%emt 0:00:32]} hxg5 {[%emt 0:00:12]} 61. h5 {[%emt 0:00:01]} Bd5 {[%emt 0:01:51]} (61... Bb3 $142 62. Rxd3 b1=Q (62... b1=B $2 {too greedy.} 63. Rxe3 Bxe4 64. fxe4 $18) (62... Rxe4+ $2 63. fxe4 b1=Q 64. Rc3+ Bc4 65. Kf5 $19) 63. Rxe3 Qc1 64. Kf6 Qxe3 65. Bb7 Bc4 (65... Bxa4 $2 66. Be4 $19) 66. f4 Qxf4+ 67. Kg7 Kd6 68. Kh7 Ke7 69. Kh8 Bd3 70. Kg7 Qd4+ (70... Qxa4 {leads to mate.} 71. Kh6 Qf4 72. Be4 Qxe4 73. Kxg5 f6+ 74. Kh6 Qh7#) 71. Kg8 Qd8+ 72. Kg7 Qf8#) 62. h6 {[%emt 0:01:04]} Bxe4 {[%emt 0:00:09]} 63. fxe4 {[%emt 0:00:04]} Rh3 {[%emt 0:00:09]} 64. Kf6 {[%emt 0:00:53]} Rxh6+ {[%emt 0:00:14]} 0-1

[Event "SixDays Budapest GM-A May 2024"]
[Site "Budapest"]
[Date "2024.05.20"]
[Round "7.3"]
[White "Bai, Adelard"]
[Black "Sahib Singh"]
[Result "0-1"]
[ECO "D11"]
[WhiteElo "2376"]
[BlackElo "2291"]
[Annotator "TA"]
[PlyCount "84"]
[EventDate "2024.05.15"]
[EventType "tourn"]
[EventCountry "HUN"]
[SourceTitle "playchess.com"]
[Source "ChessBase"]
[SourceQuality "1"]
[TimeControl "40/5400+30:1800+30"]

{[%evp 9,84,0,14,0,7,0,0,0,10,0,0,0,1,-131,-122,-156,-154,-152,-151,-159,-98,-173,-175,-157,-152,-179,-171,-160,-99,-269,-140,-104,-127,-277,-288,-557,-656,-684,-667,-704,-689,-685,-655,-971,-992,-992,-914,-1702,-1588,-2275,-2150,-2134,-1865,-1482,-1427,-1214,-1200,-1616,-1193,-1928,-1689,-2059,-792,-2226,-4598,-29970,-29971,-29971,-29972,-29971,-29972,-29985,-29986,-29988,-29989,-29990,-29991]} 1. d4 {[%emt 0:00:40]} d5 {[%emt 0:00:03]} 2. c4 {[%emt 0:00:24]} c6 {[%emt 0:00:55]} 3. Nf3 {[%emt 0:00:14]} Nf6 {[%emt 0:00:04]} 4. g3 {[%emt 0:00:07]} dxc4 {[%emt 0:00:07]} 5. Bg2 {[%emt 0:00:16]} b5 {[%emt 0:00:20]} 6. O-O {[%emt 0:01:34]} Bb7 {[%emt 0:00:19]} 7. b3 {[%emt 0:00:05]} cxb3 $1 {[%emt 0:00:14]} 8. Qxb3 {[%emt 0:00:02] The position is equal.} e6 {[%emt 0:01:17]} 9. Nc3 Nbd7 {[%emt 0:04:25]} 10. Rd1 {[%emt 0:07:01]} a5 {[%emt 0:08:22]} 11. a4 {[%emt 0:13:09]} (11. Bg5 $11 {remains equal.}) 11... b4 $17 {[%emt 0:03:50]} 12. Ne5 {[%emt 0:12:01]} bxc3 {[%emt 0:03:37]} 13. Qxb7 {[%emt 0:08:47]} Nxe5 {[%emt 0:00:05]} 14. dxe5 {[%emt 0:05:40]} Qxd1+ {[%emt 0:00:04]} 15. Bf1 {[%emt 0:00:02]} Rd8 {[%emt 0:21:42]} 16. exf6 {[%emt 0:04:29][%cal Oc1g5] And now Bg5! would win.} Qd7 {[%emt 0:02:20]} ({Not} 16... gxf6 17. Qxc6+ Qd7 18. Qxc3 $11) 17. Qa6 {[%emt 0:16:39]} gxf6 {[%emt 0:17:46]} 18. Qxa5 {[%emt 0:00:40]} Qd4 {[%emt 0:07:41]} (18... Bd6 $142 $1 {aiming for ...Qb7.} 19. Bh6 (19. Qxc3 $2 {loses.} Be5 $19) 19... Be5) 19. Be3 $2 {[%emt 0:03:24]} (19. Qa6 $17 {is a better defense.} Bc5 20. Qxc6+ Ke7 21. Be3) 19... Qb4 {[%emt 0:01:57]} (19... Qc4 $1 $19 20. Qb6 c2) 20. Qa6 {[%emt 0:06:42] [#]} Bd6 $1 {[%emt 0:00:09]} 21. Rc1 {[%emt 0:06:28]} (21. Rd1 $17 {was forced.} O-O 22. Rd4) 21... O-O $19 {[%emt 0:03:10]} 22. Bg2 $2 {[%emt 0:02:58]} (22. Bh6 {might work better.}) 22... Bc5 {[%emt 0:04:28]} 23. Bxc5 {[%emt 0:03:26]} Qxc5 {[%emt 0:00:40]} 24. Qxc6 {[%emt 0:02:11]} Qa3 {[%emt 0:00:38]} 25. Rf1 {[%emt 0:00:50]} Qb2 {[%emt 0:00:49]} 26. a5 {[%emt 0:01:15]} c2 {[%emt 0:03:37] ...Rd1 would now be deadly.} (26... Qxe2 $2 27. Qxc3 Kg7 28. Bb7 $19) 27. Be4 {[%emt 0:03:52]} Rc8 {[%emt 0:00:03]} 28. Bxh7+ {[%emt 0:00:14]} Kxh7 {[%emt 0:00:13]} 29. Qe4+ {[%emt 0:00:08] [#]} f5 $1 {[%emt 0:00:02]} 30. Qh4+ {[%emt 0:00:12]} Kg8 {[%emt 0:00:03] Strongly threatening ...Rfd8.} 31. Qg5+ {[%emt 0:00:14]} Qg7 {[%emt 0:00:04]} 32. Qc1 {[%emt 0:00:28]} Rc6 {[%emt 0:01:28]} 33. Qd2 {[%emt 0:00:15]} Rfc8 {[%emt 0:00:54]} 34. Rc1 {[%emt 0:00:22]} Qf6 {[%emt 0:00:08] Threatens to win with ...Rd8.} 35. a6 {[%emt 0:00:42]} Qd8 {[%emt 0:00:17]} 36. Qf4 {[%emt 0:00:52]} Rd6 {[%emt 0:00:30] ( -> ...Rd1+)} 37. a7 {[%emt 0:00:13]} Rd1+ {[%emt 0:00:04] Black mates.} 38. Kg2 {[%emt 0:00:03]} Rxc1 {[%emt 0:01:42]} 39. Qxc1 {[%emt 0:00:04]} Qd5+ {[%emt 0:03:54]} 40. Kh3 {[%emt 0:00:12] [#]} f4 $1 {[%emt 0:00:05]} 41. a8=Q {[%emt 0:30:46]} (41. f3 Qa5) 41... Qxa8 {[%emt 0:30:34]} 42. gxf4 {[%emt 0:00:09]} Qd5 {[%emt 0:00:14] Weighted Error Value: White=1.01/Black=0.26 (precise) .  Loses game:     	White=1     	---        Mistake:       	White=3     	Black=2      Inaccurate:     	White=1     	---        OK:         	White=3     	Black=6      Best:        	White=2     	Black=7      Strong:       	---       	Black=2} 0-1

[Event "SixDays Budapest GM-A May 2024"]
[Site "Budapest"]
[Date "2024.05.20"]
[Round "7.4"]
[White "Krastev, Alexander"]
[Black "Nagy, Gabor"]
[Result "1/2-1/2"]
[ECO "C77"]
[WhiteElo "2458"]
[BlackElo "2433"]
[Annotator "TA"]
[PlyCount "35"]
[EventDate "2024.05.15"]
[EventType "tourn"]
[EventCountry "HUN"]
[SourceTitle "playchess.com"]
[Source "ChessBase"]
[SourceQuality "1"]
[TimeControl "40/5400+30:1800+30"]

{[%evp 12,35,6,7,21,10,16,24,18,15,20,11,13,4,10,5,10,0,0,0,0,0,0,-7,0,0]} 1. e4 {[%emt 0:04:15]} e5 {[%emt 0:00:18]} 2. Nf3 {[%emt 0:00:05]} Nc6 {[%emt 0:00:14]} 3. Bb5 {[%emt 0:00:04]} a6 {[%emt 0:00:16]} 4. Ba4 {[%emt 0:00:04]} Nf6 {[%emt 0:00:20]} 5. Nc3 {[%emt 0:00:03]} b5 {[%emt 0:01:05]} 6. Bb3 {[%emt 0:00:05]} Be7 {[%emt 0:00:08]} 7. d3 {[%emt 0:00:19]} Bb7 {[%emt 0:00:07]} 8. a3 {[%emt 0:00:45]} d6 {[%emt 0:00:08]} 9. O-O {[%emt 0:01:14]} O-O {[%emt 0:00:25] White has an edge.} 10. Be3 {[%emt 0:04:46] The position is equal.} Qd7 {[%emt 0:04:16]} 11. Nd5 {[%emt 0:01:28]} Nxd5 {[%emt 0:00:51]} 12. Bxd5 {[%emt 0:06:22]} Nd8 {[%emt 0:00:20]} 13. Bxb7 {[%emt 0:05:13]} Nxb7 {[%emt 0:00:58]} 14. c4 {[%emt 0:00:16]} Rfb8 {[%emt 0:05:29]} 15. Rc1 {[%emt 0:20:22]} c5 {[%emt 0:03:31]} 16. b4 {[%emt 0:11:14]} cxb4 {[%emt 0:00:54]} 17. axb4 {[%emt 0:00:06]} a5 {[%emt 0:00:52]} 18. bxa5 {[%emt 0:01:22] An uneventful encounter.   Weighted Error Value: White=0.03 (flawless) /Black=0.02 (flawless) .  OK:         	White=4     	Black=7} 1/2-1/2

[Event "SixDays Budapest GM-A May 2024"]
[Site "Budapest"]
[Date "2024.05.20"]
[Round "7.5"]
[White "Tan, Jun Ying"]
[Black "Berczes, David"]
[Result "1/2-1/2"]
[ECO "E00"]
[WhiteElo "2307"]
[BlackElo "2425"]
[Annotator "RC"]
[PlyCount "25"]
[EventDate "2024.05.15"]
[EventType "tourn"]
[EventCountry "HUN"]
[SourceTitle "playchess.com"]
[Source "ChessBase"]
[SourceQuality "1"]
[TimeControl "40/5400+30:1800+30"]

1. d4 {[%emt 0:00:04]} e6 {[%emt 0:13:02]} 2. c4 {[%emt 0:00:10]} Bb4+ {[%emt 0:00:09]} 3. Bd2 {[%emt 0:00:20]} Bxd2+ {[%emt 0:04:07]} 4. Qxd2 {[%emt 0:00:41]} Nf6 {[%emt 0:00:09]} 5. Nc3 {[%emt 0:06:51]} d5 {[%emt 0:00:27]} 6. Nf3 {[%emt 0:02:57]} O-O {[%emt 0:00:13]} 7. e3 {[%emt 0:02:06]} Qe7 {[%emt 0:01:05]} 8. Bd3 {[%emt 0:09:35]} dxc4 {[%emt 0:01:30]} 9. Bxc4 {[%emt 0:03:27]} c5 {[%emt 0:00:17]} 10. O-O {[%emt 0:01:44]} Rd8 {[%emt 0:00:43]} 11. Qe2 {[%emt 0:00:34]} Nc6 {[%emt 0:08:39]} 12. dxc5 {[%emt 0:00:46]} Qxc5 {[%emt 0:00:10]} 13. Rfd1 {[%emt 0:00:25]} 1/2-1/2

[Event "SixDays Budapest GM-A May 2024"]
[Site "Budapest"]
[Date "2024.05.20"]
[Round "8.1"]
[White "Ramoutar, Alan-Safar"]
[Black "Berczes, David"]
[Result "1/2-1/2"]
[ECO "C55"]
[WhiteElo "2360"]
[BlackElo "2425"]
[Annotator "ChessBase"]
[PlyCount "25"]
[EventDate "2024.05.15"]
[EventType "tourn"]
[EventCountry "HUN"]
[SourceTitle "playchess.com"]
[Source "ChessBase"]
[SourceQuality "1"]
[TimeControl "40/5400+30:1800+30"]

1. e4 {[%emt 0:01:34]} e5 {[%emt 0:00:55]} 2. Nf3 {[%emt 0:00:16]} Nc6 {[%emt 0:00:06]} 3. Bc4 {[%emt 0:01:19]} Nf6 {[%emt 0:00:36]} 4. d4 {[%emt 0:00:42]} exd4 {[%emt 0:00:21]} 5. e5 {[%emt 0:00:09]} d5 {[%emt 0:00:10]} 6. Bb5 {[%emt 0:00:09]} Nd7 {[%emt 0:00:14]} 7. O-O {[%emt 0:01:00]} Be7 {[%emt 0:00:08]} 8. c3 {[%emt 0:00:07]} dxc3 {[%emt 0:00:22]} 9. Nxc3 {[%emt 0:00:17]} Nb6 {[%emt 0:00:07]} 10. a4 {[%emt 0:00:54]} a5 {[%emt 0:00:18]} 11. Be3 {[%emt 0:01:00]} O-O {[%emt 0:00:47]} 12. Bxb6 {[%emt 0:01:22]} cxb6 {[%emt 0:00:04]} 13. Qxd5 {[%emt 0:00:35]} 1/2-1/2